Cogmind - Beta 17.1 @@@ ROGUE MODE // 2026.09.09 @ 00:51:32 Player: Alicianrone Result: Destroyed by R7-CFH(R) with Subdweller Machine Gun Performance ------------- Evolutions (0) 0 Regions Visited (2) 400 Robots Destroyed (46) 230 Value Destroyed (1150) 1150 Prototype IDs (16) 320 Alien Tech Used (0) 0 Bonus (-74) -74 TOTAL SCORE: 2026 Bonus ------- Friendly Fire -74 Cogmind --------- Core Integrity 0/250 Matter 230/300 Energy 186/200 System Corruption 0% Temperature Cool (0) Movement Treading (240) Ox1 Location -10/Subcaves Parts ------- > --- POWER (1) -------- Subdweller Power Source > --- PROPULSION (2) --- Light Treads > --- UTILITY (2) ------ Large Storage Unit Core Shielding > --- WEAPON (2) ------- Barrage Gun Battle Cannon > --- INVENTORY (15) --- Light Treads Wheel Flightbrick Seismic Detector Heavy Riot Gun Subdweller Machine Gun Subdweller Machine Gun Grenade Launcher Multitool Piercing Trap Peak State ------------ > --- POWER ------------ Subdweller Power Source > --- PROPULSION ------- Light Treads Light Treads > --- UTILITY ---------- Large Storage Unit Core Shielding > --- WEAPON ----------- Barrage Gun Battle Cannon > --- INVENTORY -------- Light Treads Wheel Flightbrick Seismic Detector Heavy Riot Gun Subdweller Machine Gun Subdweller Machine Gun Grenade Launcher Multitool Piercing Trap [Rating: 16] Favorites ----------- Power Ion Engine Engine Ion Engine Propulsion Light Treads Treads Light Treads Wheel Wheel Utility Large Storage Unit Device Seismic Detector Storage Large Storage Unit Protection Core Shielding Weapon Subdweller Beam Cannon Energy Gun EM Pulse Gun Energy Cannon Subdweller Beam Cannon Ballistic Gun Assault Rifle Ballistic Cannon Battle Cannon Launcher Grenade Launcher Build | -11 -10 -10 ------- Run | Yrd Mat Sub Slots Evolved . | . . . Power . | . . . Propulsion . | . . . Utility . | . . . Weapon . | . . . Parts Attached 29 | 7 10 12 Power 4 | 1 2 1 Engine 4 | 1 2 1 Core . | . . . Reactor . | . . . Propulsion 6 | 2 2 2 Treads 4 | . 2 2 Leg . | . . . Wheel 2 | 2 . . Hover . | . . . Flight . | . . . Utility 6 | 2 3 1 Device 3 | 1 1 1 Storage 2 | 1 1 . Processor . | . . . Hackware . | . . . Protection 1 | . 1 . Artifact . | . . . Weapon 13 | 2 3 8 Energy Gun 3 | 1 2 . Energy Cannon 3 | . . 3 Ballistic Gun 5 | 1 . 4 Ballistic Cannon 1 | . . 1 Launcher 1 | . 1 . Special Weapon . | . . . Impact Weapon . | . . . Slashing Weapon . | . . . Piercing Weapon . | . . . Special Melee Weapon . | . . . Unidentified Prototypes . | . . . Parts Lost 8 | . 1 7 Power 2 | . 1 1 Propulsion 3 | . . 3 Utility 1 | . . 1 Weapon 2 | . . 2 Highest Loss Streak 2 | . 1 2 To Critical Strikes . | . . . Average Backups 10 | 2 8 11 Power . | . . . Propulsion 3 | 1 3 3 Utility 1 | . 1 1 Weapon 4 | . 2 5 Tool/Special . | . . . Unused Backups 8 | . . 8 Power . | . . . Propulsion 3 | . . 3 Utility . | . . . Weapon 4 | . . 4 Tool/Special 1 | . . 1 Average Slot Usage (%) 99 | . 99 99 Engine 13 | . 13 14 Treads 16 | . 14 17 Wheel 11 | . 13 10 Device 11 | . 13 11 Storage 14 | . 14 14 Protection 2 | . . 2 Energy Gun 5 | . 13 1 Energy Cannon 14 | . . 21 Ballistic Gun 6 | . 14 2 Ballistic Cannon 1 | . . 2 Peak Build Rating 16 | 7 8 16 Average Rating 10 | 5 7 11 On Entrance 5 | . 7 8 Avg Prop Armor Cover (%) 12 | . 11 12 Naked Turns . | . . . Heaviest Build 42 | 15 30 42 Greatest Support 40 | 20 40 40 Greatest Overweight (x) 4 | . 2 4 Average Overweight (x) 2 | . 1 3 Largest Inventory Capacity 15 | 8 15 15 Average Capacity 14 | 7 14 15 Most Carried 15 | 4 12 15 Average Carried 11 | 3 8 12 Final Capacity 15 | 8 15 15 Final Carried 13 | 4 11 13 Class Distribution -------------------- 100% | Mutant Dominant Class ---------------- Mutant | -10/Materials Mutant | -10/Subcaves Resources | -11 -10 -10 ----------- Run | Yrd Mat Sub Matter Collected 1307 | 300 428 579 Remotely . | . . . Salvage Created 1417 | 88 745 584 Parts 103 | 12 55 36 Haulers Intercepted 2 | . 2 . Recyclers Shooed . | . . . Parts Field Recycled . | . . . Retrieved Matter . | . . . Parts Self-Destructed 9 | . . 9 Prevented . | . . . Parts Restored . | . . . Kills | -11 -10 -10 ------- Run | Yrd Mat Sub Combat Hostiles Destroyed 32 | . 17 15 Guns 15 | . 11 4 Cannons 8 | . . 8 AOE 9 | . 6 3 Classes Destroyed 9 | 1 6 2 Worker 2 | . 2 . Tunneler 4 | 4 . . Hauler 2 | . 2 . Operator 3 | . 3 . Watcher 3 | . 3 . Swarmer 8 | . 6 2 Grunt 11 | . 11 . Artisan 1 | . . 1 Subdweller 13 | . . 13 Best Kill Streak 6 | 3 6 2 Combat Bots Only 4 | . 4 2 Max Kills in Single Turn 4 | 1 4 2 Gunslinging . | . . . Exploded 2 | . 2 2 Melee . | . . . Uniques/NPCs Destroyed . | . . . Combat | -11 -10 -10 -------- Run | Yrd Mat Sub Hostile Shots Fired 100 | . 41 59 Missed 28 | . 14 14 Hits 72 | . 27 45 Projectile 72 | . 27 45 AOE 3 | . . 3 Critical Strikes 1 | . . 1 Damage Taken 1542 | . 350 1192 Core 257 | . 53 204 Absorbed by Shields . | . . . Redirected to Shielding 33 | . 2 31 Core Remaining (%) 100 | 100 . . Volleys Fired 130 | 10 54 66 Largest 2 | 2 2 2 Hottest 160 | 70 70 160 Shots Fired 228 | 20 105 103 Gun 154 | 20 102 32 Cannon 68 | . . 68 Launcher 6 | . 3 3 Special . | . . . Kinetic 97 | 10 51 36 Thermal 71 | 10 4 57 Explosive 6 | . 3 3 Electromagnetic 54 | . 47 7 Robot Hit Streak 23 | 6 23 20 Robot Miss Streak 6 | 2 6 1 Penetration Max . | . . . Secondary Targets 2 | . 2 . Max Gunslinging Chain 1 | . 1 . Shots Hit Robots 142 | 13 65 64 Core Hits 65 | 4 40 21 Critical Kills . | . . . Critical Parts Destroyed . | . . . Critical Strikes 1 | 1 . . Burn 1 | 1 . . Melee Attacks . | . . . Impact . | . . . Slashing . | . . . Piercing . | . . . Sneak Attacks . | . . . Combat Hostiles . | . . . Follow-up Attacks . | . . . Damage Inflicted 2923 | 155 1425 1343 Guns 1396 | 155 877 364 Cannons 768 | . . 768 Explosions 759 | . 548 211 Melee . | . . . Ramming . | . . . Kinetic 873 | 56 417 400 Thermal 1068 | 99 183 786 Explosive 465 | . 377 88 Electromagnetic 517 | . 448 69 Impact . | . . . Slashing . | . . . Piercing . | . . . Highest Corruption . | . . . Average Corruption . | . . . Corruption Purged . | . . . Corruption Blocked . | . . . Overload Shots . | . . . Overflow Damage 42 | . . 42 Projectiles 14 | . . 14 Explosions 28 | . . 28 Melee . | . . . Knockbacks 1 | . . 1 Impact . | . . . Kinetic 1 | . . 1 Secondary . | . . . Self-Inflicted Damage 112 | . 54 58 Shots 2 | . 1 1 Rammed . | . . . Targets Rammed . | . . . Kicked . | . . . Crushed . | . . . Highest Temperature 416 | 72 38 416 Average Temperature 76 | 32 13 132 Received Heat Transfer 612 | . 153 459 Effects 6 | . . 6 Shutdowns 1 | . . 1 Interference 3 | . . 3 Matter Decay 1 | . . 1 Short Circuit 1 | . . 1 Siege Activations . | . . . Martial Activations . | . . . Shielding Activations . | . . . Robots Disrupted . | . . . Combat Hostiles . | . . . Robots Corrupted . | . . . Combat Hostiles . | . . . Parts Fried 3 | . 1 2 Impact Corruptions . | . . . Robots Melted . | . . . Combat Hostiles . | . . . Parts Melted 3 | 1 . 2 Heat Transferred 1730 | 370 187 1173 Parts Sabotaged . | . . . Parts Stolen . | . . . Parts Stripped . | . . . Power Chain Reactions 3 | . 2 1 Alert | -11 -10 -10 ------- Run | Yrd Mat Sub Maximum Alert Level 1 | . 1 . Low Security (%) 62 | 100 59 . Level 1 37 | . 40 . Level 2 . | . . . Level 3 . | . . . Level 4 . | . . . Level 5 . | . . . High Security . | . . . Max Security . | . . . Peak Influence 329 | 15 329 . Initial 3 | . 3 . Average 153 | 2 164 . Influence Increases 746 | 20 676 50 Destroy 0b10 Robot/C 380 | . 340 40 Destroy 0b10 Robot/NC 70 | 20 50 . Destroy Leader 110 | . 100 10 Successful Hack 50 | . 50 . Select Force Hacks 60 | . 60 . Disable Machine 30 | . 30 . Destroy Structure 16 | . 16 . Lose Combat Pursuer 30 | . 30 . Influence Decreases 746 | 15 449 282 Entered New Map 114 | . 2 112 Time Decay 612 | 15 437 160 Lost Part 20 | . 10 10 Squads Dispatched 5 | . 5 . Investigation 2 | . 2 . Extermination . | . . . Reinforcement 3 | . 3 . Assault . | . . . Garrison . | . . . Intercept . | . . . Searches Triggered . | . . . Construction Impeded . | . . . Haulers Reinforced . | . . . Active Scanning Responses . | . . . Cargo Convoy Interrupts . | . . . Stealth | -11 -10 -10 --------- Run | Yrd Mat Sub Distress Signals 1 | . 1 . Communications Jammed . | . . . Distress Signals . | . . . Times Spotted 45 | . 29 16 Peak Tracking Total 4 | . 4 2 Tactical Retreats 1 | . 1 . Traps | -11 -10 -10 ------- Run | Yrd Mat Sub Traps Triggered 2 | . . 2 Indirectly . | . . . Trap Hack Attempts . | . . . Triggered . | . . . Disarmed . | . . . Reprogrammed 4 | . 4 . Reused . | . . . Traps Extracted . | . . . Installed . | . . . Triggered . | . . . Most Traps Carried 1 | . . 1 Machines | -11 -10 -10 ---------- Run | Yrd Mat Sub Machines Disabled 4 | . 2 2 Max in Single Turn 1 | . 1 1 Machines Repaired . | . . . Machines Dismantled . | . . . Machines Sabotaged . | . . . Overloaded Fab Kills . | . . . Hacking | -11 -10 -10 --------- Run | Yrd Mat Sub Machines Accessed 10 | . 9 1 Terminals 7 | . 7 . Fabricators . | . . . Repair Stations . | . . . Recycling Units 2 | . 2 . Scanalyzers . | . . . Garrison Access . | . . . Total Hacks 34 | . 33 1 Successful 22 | . 21 1 Failed 12 | . 12 . Catastrophic 2 | . 2 . Database Lockouts . | . . . Manual 30 | . 30 . Terminals 31 | . 31 . Fabricators . | . . . Repair Stations . | . . . Recycling Units 2 | . 2 . Scanalyzers . | . . . Garrison Access . | . . . Terminal Hacks 9 | . 8 1 Part Schematic 1 | . 1 . Robot Analysis 1 | . 1 . Prototype ID Bank 1 | . 1 . Terminal Index 1 | . 1 . Locate Traps 3 | . 3 . Reprogram Traps 1 | . 1 . Proto ID Catalog 1 | . . 1 Fabricator Hacks . | . . . Repair Station Hacks . | . . . Recycling Unit Hacks . | . . . Scanalyzer . | . . . Garrison Access Hacks . | . . . Unauthorized Hacks 13 | . 13 . Terminals 11 | . 11 . Track 1 | . 1 . Assimilate 1 | . 1 . Botnet 3 | . 3 . Operators 1 | . 1 . Skim 5 | . 5 . Fabricators . | . . . Repair Stations . | . . . Recycling Units 2 | . 2 . Tunnel 2 | . 2 . Scanalyzers . | . . . Garrison Access . | . . . Data Cores Recovered . | . . . Used . | . . . Hacking Detections 7 | . 7 . Full Trace Events 1 | . 1 . Feedback Events . | . . . Feedback Blocked . | . . . Robot Schematics Acquired . | . . . Robots Built . | . . . Authchips . | . . . Time . | . . . Total Robot Build Rating . | . . . Part Schematics Acquired 1 | . 1 . Parts Built . | . . . Authchips . | . . . Time . | . . . Total Part Build Rating . | . . . Part Studies Acquired . | . . . Parts Repaired . | . . . Time . | . . . Parts Recycled . | . . . Recycled Matter . | . . . Retrieved Matter . | . . . Retrieved Components . | . . . Parts Scanalyzed . | . . . Part Schematics Acquired . | . . . Parts Damaged . | . . . Bothacking | -11 -10 -10 ------------ Run | Yrd Mat Sub Used RIF Installer . | . . . Robots Hacked . | . . . Non-combat . | . . . Combat . | . . . Robot Hacks Applied . | . . . Relay Couplers Released . | . . . Fabnet Peak Effective % . | . . . Robots Rewired . | . . . Allies Hacked . | . . . Hacks Repelled . | . . . Allies | -11 -10 -10 -------- Run | Yrd Mat Sub Total Allies . | . . . Largest Group . | . . . Highest-Rated Group . | . . . Highest-Rated Ally . | . . . Total Orders . | . . . Ally Attacks . | . . . Total Damage . | . . . Kills . | . . . Allies Corrupted . | . . . Allies Melted . | . . . Intel | -11 -10 -10 ------- Run | Yrd Mat Sub Active Infowar (turns) 2937 | 4 966 1967 Seismic 2937 | 4 966 1967 Robot Analysis Total 1 | . 1 . Derelict Logs Recovered 1 | . . 1 Drone Launches . | . . . Drone Recoveries . | . . . Exploration | -11 -10 -10 ------------- Run | Yrd Mat Sub Turns Passed 3723 | 85 1161 2477 Spaces Moved 2059 | 47 749 1263 Core 3 | 3 . . Treads 281 | . 58 223 Legs . | . . . Wheels 1775 | 44 691 1040 Hover . | . . . Flight . | . . . Fastest Speed 50 | 50 80 110 Average Speed 129 | 78 110 142 Slowest Speed 240 | 80 160 240 Overloaded Moves . | . . . Propulsion Burnouts . | . . . Robots Hopped . | . . . Potential Cave-ins . | . . . Cave-ins Triggered . | . . . Exploration Rate (%) 55 | 3 97 66 Regions Visited 2 Branch Regions 1 Pre-discovered Areas 2 | . 2 . Known Exits Taken . | . . . Unknown Exits Taken 2 | 1 1 . Scrap Searched 8 | . . 8 Spaces Dug . | . . . Terrain Destroyed 33 | . 15 18 Melee . | . . . Projectile 4 | . . 4 AOE 29 | . 15 14 Terrain Rammed . | . . . Walls Destroyed . | . . . Machines Disabled . | . . . Actions | -11 -10 -10 --------- Run | Yrd Mat Sub Total 2860 | 71 969 1820 Wait 552 | 4 130 418 Move 2057 | 46 748 1263 Hop . | . . . Pick Up 25 | 4 7 14 Fast Attach 11 | 7 2 2 Attach 9 | . 1 8 Detach 3 | . 1 2 Swap 58 | . 22 36 Drop 15 | . 4 11 Fire 130 | 10 54 66 Melee . | . . . Ram . | . . . Kick . | . . . Crush . | . . . Escape Stasis . | . . . Rewire . | . . . Trap . | . . . Miscellaneous . | . . . Route ------- -11/Scrapyard -10/Materials (discovered 6 exits: [*Mat x3] / [*Min x2] / *Sub) -10/Subcaves (discovered 3 exits: [*Mat x2] / Rec) History --------- Turn | Location | Event 8 | -11/Scrapyard | Discovered new exit (range 15) 86 | -11/Scrapyard | Entered Materials 317 | -10/Materials | Build established: Mutant 375 | -10/Materials | Discovered new exit (range 6) 479 | -10/Materials | Discovered new exit (range 16) 586 | -10/Materials | Derelicts attacked the area 803 | -10/Materials | Discovered new exit (range 13) 938 | -10/Materials | Discovered new exit (range 9) 1037 | -10/Materials | Discovered new exit (range 15) 1163 | -10/Materials | Discovered new exit (range 10) 1247 | -10/Materials | Entered Subcaves 1641 | -10/Subcaves | Disturbed a concealed Subdweller 1895 | -10/Subcaves | Discovered new exit (range 13) 1996 | -10/Subcaves | Shifting Twisted Machinery released Sub. Power Source 1999 | -10/Subcaves | Shifting Twisted Machinery released Flamer 2160 | -10/Subcaves | Discovered new exit (range 6) 2324 | -10/Subcaves | Visited 4L-MR0's lab 2815 | -10/Subcaves | Found Flightbrick 3132 | -10/Subcaves | Identified exit to Recycling 3291 | -10/Subcaves | Shifting Twisted Machinery released Battle Cannon 3306 | -10/Subcaves | Core integrity fell below 50% 3331 | -10/Subcaves | Shifting Twisted Machinery released Battle Rifle 3408 | -10/Subcaves | Core integrity fell below 20% 3724 | -10/Subcaves | Destroyed by R7-CFH(R) with Subdweller Machine Gun Last Messages --------------- 03340_ Acquired 10 matter. 03371_ R3-YMP(u) deconstructs Twisted Machinery. 03407_ Triggered Shrapnel Trap. 03407_ An expanding cloud of shrapnel blasts out in all directions. 03407_ Ion Engine destroyed. 03426_ R3-YMP(u) builds Twisted Machinery. 03488_ R3-YMP(u) tweaks Twisted Machinery. 03619_ R3-YMP(u) builds Twisted Machinery. When the line of fire is red, you are attempting to shoot through an object at another target, which incurs significant penalties. 03656_ 8B-TLZ(R) destroyed. 03658_ EK-7IO(R) destroyed. 03666_ Acquired 75 matter. 03708_ Sub. Beam Cannon destroyed. 03710_ 1J-DPI(R) knocked back. 03713_ 1J-DPI(R) destroyed. 03722_ Broken Lgt. Treads destroyed. Map ----- +----------------------------------------------------+ | | | | | | | | | ?????????????????????????????????????????????????? | | ?????????????????????????????????????????????????? | | ?????????????????????????????????????????????????? | | ?????????????????????????????????????????????????? | | ?????????????????????????????????????????????????? | | ?????????????????????????????????????????????????? | | ?????????????????????????????????????????????????? | | ?????????????????????????????????????????????????? | | ?????????????????????????????????????????????????? | | ?????????????????????????????????????????????????? | | ?????????????????????????????????????????????????? | | ?????????????????????????????????????????????????? | | ?????????????????????????????????????????????????? | | ?????????????????????????????????????????????????? | | ??????????????????????#########??????????????????? | | ??????????????????????# ####???????###?????? | | ??????????##???????????# ####?####"##????? | | ?????????? ????###### # ### " ##???? | | ????????? ## # # "&&##??? | | ????????? %R % ### ## ## =%"###? | | ????????? #?# ########*!"""#? | | ??????????? ### #@ #?#######???#=& "##? | | ??????????????????# #### #????## #??# ##?? | | ??????????????????# ????### #???# #### #?? | | ????????????????? ??????? #??# ^ ##" #?? | | ???????????????# ???????? #??# " #?? | | ???????????????# ???????? #?## ##? | | ??????????????""""" ????????? #??# #? | | ??????????????"""""""????????? #??# ##? | | ?????????????????#" ?????????? ??# ##?? | | ??????????????????" ???????# ?? ?##^ ####??? | | ??????????????????"????????? ?? ?#?# ##????? | | ????????????????????????????? ????## ####?? | | ?????????????????????????????? ???#" ^ #?? | | ??????????????????????????????# ???#" ##?? | | ??????????????????????????#???# ??#" "# #??? | | ?????????????????????????## ### ### "## #?? | | ?????????????????????????# "#?# | | ?????????????????????????# ""#??# | | ?????????????????????????# ## # ""##### | | ??????????????????????????????## ###?# ## ## | | ??????????????????????????????## ^ #??## ###? | | ??????????????????????????????# ##?# #?? | | ??????????????????????????????# #?# #?? | | ??????????????????????????????# ### ### #?? | | ??????????????????????????????###??# ### ### | +----------------------------------------------------+ Best States ------------- Heat Dissipation 35 Energy Generation 15 Energy Capacity 250 Matter Stores 300 Matter Capacity 300 Sight Range 16 Terrain Scan Density 10 Core Shielding 20 Evasion (%) 44 Recoil Reduction 2 Item Schematics ----------------- Hcp. Storage Unit | -10/Materials | Hacked Robot Schematics ------------------ None Fabricated ------------ Nothing Repaired ---------- Nothing Studied --------- None Alien Tech Used ----------------- None Achievements -------------- None Challenges ------------ None Game ------ Seed PropulsionProcessingFragment Manual? 0 Play Time 00:21:47 Cumulative 1077.0 hours Start 2026.09.09 @ 00:26:54 End 2026.09.09 @ 00:51:32 Sessions 1 Manual Loads 0 Difficulty Rogue Special Mode None Game No. 300 Rogue 300 Adventurer 0 Explorer 0 Win Type - Total 49 Types 14/11/12/2/2/0/4/1/1/2 Lore% 97 Gallery% 91 Achievement% 87 Wizard Run 0 Options --------- Layout 1 ASCII 0 Keyboard 0 Movement Mouse Keybinds 0 Fullscreen 2 Font 32/SmallcapsGlow Map View 50x35 Zoom Use 0% Tactical HUD 1 Map Filters NONE Filters NONE Steam 1 RUN: 8a80a968-f538-4374-8338-8851f2a5a240